bitfinex/quotes_ETHUSD_20241003
["timestamp","ask_amount","ask_price","bid_price","bid_amount"]
[1727913959711,4.23007,2364.1,2363.7,0.49123838]
[1727913959946,0.08753097,2364.0,2363.6,0.0624472]
[1727913960250,0.08753097,2364.0,2363.6,4.23072]
[1727913960552,0.08753097,2364.0,2363.3,1.65535585]
[1727913960553,4.23049,2363.8,2363.3,5.01976]
[1727913960735,0.08739269,2363.7,2363.3,5.01976]
[1727913961165,0.08739269,2363.7,2363.3,0.7885]
[1727913961166,0.08725518,2363.6,2363.3,0.7885]
[1727913961456,0.08725518,2363.6,2363.0,5.86335585]
[1727913961457,4.23103,2363.5,2363.0,5.86335585]
[1727913961750,4.23147,2363.3,2362.8,11.71218]
[1727913961951,4.23168,2363.2,2362.7,5.05412]
[1727913962249,4.31880691,2363.2,2362.7,5.05412]
[1727913962553,4.23176,2363.1,2362.7,5.05412]
[1727913962707,4.31880691,2363.2,2362.7,5.05412]
[1727913963057,0.08709017,2363.1,2362.7,5.05412]
[1727913963262,0.08709017,2363.1,2362.7,5.05411]
[1727913963553,5.0561,2363.0,2362.4,0.7846]
[1727913963704,5.0561,2363.0,2362.2,1.41196928]
[1727913963705,4.23273,2362.6,2362.2,1.76314135]
[1727913963905,4.23273,2362.6,2362.2,0.1116855]
[1727913964101,0.08653125,2362.5,2362.2,0.1116855]
[1727913964331,4.23273,2362.6,2362.2,0.1116855]
[1727913964546,8.46545,2362.6,2362.2,0.1116855]
[1727913964944,0.08644768,2362.5,2362.2,0.1116855]
[1727913965646,4.23298,2362.4,2362.2,0.1116855]
[1727913966080,0.08621766,2362.3,2362.2,0.1116855]
[1727913966995,4.31937766,2362.3,2362.2,0.1116855]
[1727913967159,7.83367743,2362.3,2362.2,0.1116855]
[1727913970069,0.08621766,2362.3,2362.2,0.1116855]
[1727913970469,4.23271,2362.6,2362.2,0.1116855]
[1727913970871,0.0767073,2362.5,2362.2,0.1116855]
[1727913971820,0.0767073,2362.5,2362.2,4.3449855]
[1727913972134,4.23257,2362.7,2362.3,0.85784955]
[1727913972403,8.46513,2362.7,2362.3,0.85784955]
[1727913972655,0.07700641,2362.6,2362.3,0.85784955]
[1727913972939,4.30969641,2362.6,2362.3,0.85784955]
[1727913974899,4.29367083,2362.6,2362.3,0.85784955]
[1727913975095,4.30920739,2362.6,2362.3,0.85784955]
[1727913976622,4.30920739,2362.6,2362.2,0.1116855]
[1727913976623,4.23282,2362.5,2362.2,0.1116855]
[1727913976954,0.07638274,2362.4,2362.2,0.1116855]
[1727913978934,4.23316,2362.3,2362.2,0.1116855]
[1727913979125,4.30949233,2362.3,2362.2,0.1116855]
[1727913979320,5.06439233,2362.3,2362.2,0.1116855]
[1727913979633,8.91865556,2362.3,2362.2,0.1116855]
[1727913984040,25.80319356,2362.3,2362.2,0.1116855]
[1727913985935,23.25919356,2362.3,2362.2,0.1116855]
[1727913986235,8.97765556,2362.3,2362.2,0.1116855]
[1727913986983,4.30949233,2362.3,2362.2,0.1116855]
[1727913987280,0.07633233,2362.3,2362.2,0.1116855]
[1727913987482,4.30949233,2362.3,2362.2,0.1116855]
[1727913987644,4.23316,2362.3,2362.2,0.1116855]
[1727913987845,4.30388359,2362.3,2362.2,0.1116855]
[1727913991993,5.98018495,2362.3,2362.2,0.1116855]
[1727913992156,8.98018495,2362.3,2362.2,0.1116855]
[1727913992685,11.11659095,2362.3,2362.2,0.1116855]
[1727913992841,8.98018495,2362.3,2362.2,0.1116855]
[1727913993575,7.30388359,2362.3,2362.2,0.1116855]
[1727913993775,3.07072359,2362.3,2362.2,0.1116855]
[1727913993958,0.07072359,2362.3,2362.2,0.1116855]
[1727913994146,5.03404,2362.6,2362.2,0.1116855]
[1727913994347,0.06606252,2362.5,2362.2,0.1116855]
[1727913994571,4.23298,2362.4,2362.2,0.1116855]
[1727913994801,0.06591256,2362.3,2362.2,0.1116855]
[1727913994946,4.29907256,2362.3,2362.2,0.1116855]
[1727913995421,5.15227782,2362.3,2362.2,0.1116855]
[1727913995606,11.51247782,2362.3,2362.2,0.1116855]
[1727913995816,23.98668582,2362.3,2362.2,0.1116855]
[1727913996130,11.51247782,2362.3,2362.2,0.1116855]
[1727913996333,26.53068582,2362.3,2362.2,0.1116855]
[1727913997191,23.98668582,2362.3,2362.2,0.1116855]
[1727913997396,12.74616682,2362.3,2362.2,0.1116855]
[1727913997596,12.31216283,2362.3,2362.2,0.1116855]
[1727913998007,8.53447383,2362.3,2362.2,0.1116855]
[1727913998229,0.06599601,2362.3,2362.2,0.1116855]
[1727913998393,4.29915601,2362.3,2362.2,0.1116855]
[1727913999159,0.06599601,2362.3,2362.2,0.1116855]
[1727913999457,3.0,2362.4,2362.2,0.1116855]
[1727913999612,0.06373008,2362.3,2362.2,0.1116855]
[1727914002359,3.8036,2362.8,2362.2,0.1116855]
[1727914002511,0.06376698,2362.3,2362.2,0.1116855]
[1727914002710,3.0,2362.6,2362.2,0.1116855]
[1727914002906,0.06373169,2362.3,2362.2,0.1116855]
[1727914003107,0.8036,2362.8,2362.2,4.3450255]
[1727914003355,0.06379161,2362.3,2362.2,4.3450255]
[1727914003559,5.03588,2362.8,2362.2,0.54618805]
[1727914003722,0.06379161,2362.3,2362.2,0.1116855]
[1727914003915,0.8036,2362.8,2362.2,4.3449055]
[1727914004115,0.06388559,2362.3,2362.2,4.3449055]
[1727914004360,8.03587,2362.8,2362.2,0.96951105]
[1727914004842,0.06402739,2362.7,2362.2,5.20282105]
[1727914005663,0.06402739,2362.7,2362.2,0.96951105]
[1727914005866,4.29649739,2362.7,2362.2,0.1116855]
[1727914006508,0.06402739,2362.7,2362.2,0.1116855]
[1727914006712,0.06402739,2362.7,2362.2,4.3449355]
[1727914006958,0.06402739,2362.7,2362.2,0.1116855]
[1727914007115,0.87403013,2362.7,2362.2,0.1116855]
[1727914007315,4.23262,2362.6,2362.2,0.1116855]
[1727914007718,3.06394644,2362.5,2362.2,0.1116855]
[1727914008716,7.29675644,2362.5,2362.2,0.1116855]
[1727914009614,3.06394644,2362.5,2362.2,0.1116855]
[1727914011067,3.06394644,2362.5,2362.2,4.3449355]
[1727914011279,0.06394644,2362.5,2362.3,5.02136]
[1727914011485,0.06394644,2362.5,2362.4,4.23298]
[1727914011791,12.87232603,2363.8,2362.4,4.23298]
[1727914011792,7.88232603,2363.8,2363.4,4.23117]
[1727914012076,0.0579378,2363.7,2363.6,8.46151]
[1727914012425,4.2294,2364.4,2363.8,4.23045]
[1727914012627,0.05628121,2364.3,2363.8,4.23045]
[1727914013425,0.05628121,2364.3,2363.6,8.46146]
[1727914013426,7.28596121,2364.3,2363.6,8.46146]
[1727914013661,7.28596121,2364.3,2363.7,4.23061]
[1727914013919,3.05628121,2364.3,2363.7,4.23061]
[1727914014049,7.28588121,2364.3,2363.7,4.23061]
[1727914014254,7.28588121,2364.3,2363.6,0.924966]
[1727914014485,7.28588121,2364.3,2363.4,0.8728129]
[1727914015365,7.28588121,2364.3,2363.4,0.7882]
[1727914015754,4.22984,2364.2,2363.4,0.7882]
[1727914015951,0.05418937,2364.1,2363.4,0.7882]
[1727914016153,11.4593,2364.3,2363.4,0.7882]
[1727914016454,4.28404122,2364.2,2363.4,0.7882]
[1727914016649,4.22994,2364.1,2363.4,0.7882]
[1727914016903,0.05408385,2364.0,2363.4,0.7882]
[1727914017520,11.45927,2364.3,2363.4,0.7882]
[1727914017791,4.22979,2364.2,2363.4,0.7882]
[1727914017998,0.05444376,2364.1,2363.4,0.7882]
[1727914018997,4.28442376,2364.1,2363.4,0.7882]
[1727914019998,0.05444376,2364.1,2363.4,0.7882]
[1727914020998,4.28442376,2364.1,2363.4,0.7882]
[1727914021496,4.23015,2364.0,2363.4,0.7882]
[1727914022013,5.01763896,2363.9,2363.1,8.2436]
[1727914022156,5.01763896,2363.9,2363.1,0.7636]
[1727914022157,4.23109,2363.5,2363.1,0.7636]
[1727914022376,4.23155,2363.2,2362.7,0.7636]
[1727914022669,3.0,2363.3,2362.4,0.8333]
[1727914022670,7.23218,2362.9,2362.4,0.8333]
[1727914022981,4.28638167,2362.8,2362.4,0.8333]
[1727914023184,4.23259,2362.7,2362.4,0.8333]
[1727914023355,0.05329256,2362.6,2362.2,0.1116855]
[1727914023694,4.28603256,2362.6,2362.2,0.1116855]
[1727914024390,4.23283,2362.5,2362.2,0.1116855]
[1727914024603,3.05329256,2362.6,2362.2,0.1116855]
[1727914024752,0.05304651,2362.4,2362.2,0.1116855]
[1727914024956,0.05310957,2362.3,2362.2,0.1116855]
[1727914025163,3.0,2362.6,2362.2,0.1116855]
[1727914025491,0.0531895,2362.5,2362.4,0.8142]
[1727914025695,0.0531895,2362.5,2362.4,0.89707137]
[1727914025867,4.23112,2363.5,2362.5,0.55]
[1727914026074,0.05356719,2363.4,2362.6,5.12966435]
[1727914026268,0.05356719,2363.4,2362.7,0.55]
[1727914026469,0.05356719,2363.4,2362.9,0.8142]
[1727914026709,4.23139,2363.3,2362.9,0.8142]
[1727914026910,4.23155,2363.2,2362.9,0.8142]
[1727914027213,4.28501027,2363.2,2362.9,0.8142]
[1727914027667,0.05346027,2363.2,2362.9,0.8142]
[1727914027873,4.23139,2363.3,2362.9,0.8142]
[1727914028069,0.05192678,2363.2,2362.9,0.8142]
[1727914028308,4.23139,2363.3,2362.9,0.8142]
[1727914028485,0.05186786,2363.1,2362.9,0.8142]
[1727914028897,4.23139,2363.3,2362.9,0.8142]
[1727914029100,0.05182287,2363.0,2362.9,0.8142]
[1727914029301,4.23155,2363.2,2362.9,0.8142]
[1727914029788,4.28354822,2363.1,2362.9,0.8142]
[1727914030535,8.51537822,2363.1,2362.9,0.8142]
[1727914030748,4.2328,2362.5,2362.3,8.2709]
[1727914031034,4.28459848,2362.4,2362.2,0.1116855]
[1727914031202,4.23316,2362.3,2362.2,0.1116855]
[1727914031396,4.28476576,2362.3,2362.2,0.1116855]
[1727914031584,0.05160576,2362.3,2362.2,0.1116855]
[1727914031789,0.05160576,2362.3,2362.2,0.9174855]
[1727914032029,4.23235,2362.8,2362.2,0.9174855]
[1727914032333,4.23264,2362.6,2362.2,0.9174855]
[1727914032489,0.05179672,2362.7,2362.2,0.9174855]
[1727914032490,4.23316,2362.3,2362.2,0.9174855]
[1727914032692,4.23316,2362.3,2362.2,0.1116855]
[1727914032917,4.28473489,2362.3,2362.2,0.1116855]
[1727914033399,0.05157489,2362.3,2362.2,0.1116855]
[1727914033727,4.23256,2362.7,2362.2,0.8936855]
[1727914033728,4.23253,2362.7,2362.2,0.8936855]
[1727914033905,4.23237,2362.8,2362.3,0.0846446]
[1727914034087,4.23237,2362.8,2362.3,0.60582861]
[1727914034287,4.23237,2362.8,2362.3,0.52118401]
[1727914034509,4.23246,2362.7,2362.3,0.08462974]
[1727914034792,4.23246,2362.7,2362.2,0.8936855]
[1727914035119,3.0,2363.2,2362.2,0.8936855]
[1727914035324,4.23187,2363.1,2362.5,0.8134]
[1727914035538,4.23195,2363.0,2362.6,0.58926804]
[1727914035685,4.23187,2363.1,2362.6,0.504627]
[1727914036036,4.2321,2362.9,2362.5,0.8134]
[1727914036409,4.23187,2363.1,2362.5,0.8134]
[1727914036609,3.0,2363.4,2362.5,0.8134]
[1727914036842,4.23221,2362.9,2362.5,0.8134]
[1727914037041,4.23191,2363.0,2362.5,0.8134]
[1727914037229,4.2322,2362.9,2362.5,0.8134]
[1727914037434,4.23262,2362.6,2362.5,1.373046]
[1727914037637,4.23262,2362.6,2362.5,0.8134]
[1727914038014,8.46504,2362.7,2362.5,0.8134]
[1727914038312,4.23262,2362.6,2362.5,0.8134]
[1727914039530,4.23247,2362.7,2362.5,0.8134]
[1727914039780,4.23223,2362.9,2362.5,0.8134]
[1727914040055,0.7952,2363.4,2362.6,0.03937677]
[1727914040056,4.232,2363.0,2362.6,0.03937677]
[1727914040261,4.232,2363.0,2362.6,0.54794245]
[1727914040575,4.232,2363.0,2362.6,0.50856568]
[1727914040576,4.23227,2362.8,2362.6,0.50856568]
[1727914040861,4.232,2363.0,2362.5,0.8134]
[1727914040862,4.2321,2362.9,2362.5,0.8134]
[1727914041363,4.2323,2362.8,2362.5,0.8134]
[1727914041560,4.2321,2362.9,2362.5,0.8134]
[1727914041776,4.2315,2363.3,2362.7,4.23232]
[1727914042059,8.4626,2363.4,2362.8,6.029772]
[1727914042242,4.23128,2363.4,2362.9,1.0262082]
[1727914042823,4.23103,2363.5,2362.9,5.2582782]
[1727914043020,4.23096,2363.6,2363.0,0.8266]
[1727914043255,4.23138,2363.3,2363.0,1.53218102]
[1727914043454,4.23138,2363.3,2363.0,0.8266]
[1727914043662,0.7603,2363.5,2362.7,0.8266]
[1727914043865,4.2316,2363.2,2362.7,1.387538]
[1727914044077,4.23188,2363.1,2362.7,1.387538]
[1727914044562,4.23221,2362.9,2362.7,0.560938]
[1727914044719,4.23191,2363.0,2362.6,0.7912]
[1727914045113,4.23185,2363.1,2362.6,5.0238]
[1727914045334,4.23149,2363.3,2362.8,4.23217]
[1727914045619,4.23103,2363.5,2363.1,4.23168]
[1727914045854,4.23103,2363.5,2363.2,0.423168]
[1727914046556,4.23122,2363.4,2363.2,0.423168]
[1727914046723,4.23137,2363.3,2363.2,0.423168]
[1727914046912,4.23094,2363.6,2363.0,4.2319]
[1727914047114,4.23094,2363.6,2363.1,4.31192277]
[1727914047319,4.23022,2364.0,2363.6,4.23073]
[1727914047522,0.7912,2364.6,2363.7,5.12037783]
[1727914047752,4.22925,2364.5,2363.7,0.88980783]
[1727914047955,4.23047,2363.8,2363.7,2.06526978]
[1727914048212,4.23047,2363.8,2363.7,0.8052]
[1727914048357,4.23047,2363.8,2363.3,0.55]
[1727914048698,4.96286694,2364.3,2363.2,4.66272228]
[1727914048699,4.23065,2363.7,2363.4,0.8052]
[1727914048880,4.23086,2363.6,2363.4,0.8052]
[1727914049218,4.23065,2363.7,2363.4,0.8052]
[1727914049872,4.23042,2363.9,2363.4,1.35199223]
[1727914050056,4.2305,2363.8,2363.4,1.43660664]
[1727914050259,4.23078,2363.7,2363.4,1.35199223]
[1727914050479,4.23078,2363.7,2363.4,0.8052]
[1727914051266,8.46153,2363.7,2363.4,0.8052]
[1727914051691,4.23116,2363.5,2363.2,1.23819228]
[1727914052007,4.23116,2363.5,2363.2,0.807]
[1727914053108,4.23125,2363.4,2363.2,0.807]
[1727914053402,4.23125,2363.4,2362.7,5.62254463]
[1727914053403,4.23168,2363.2,2362.8,0.7755]
[1727914053606,4.23168,2363.2,2362.8,1.33775446]
[1727914054105,4.23116,2363.5,2362.8,5.56995446]
[1727914054259,4.23056,2363.8,2362.7,0.50238]
[1727914054260,4.2303,2363.9,2363.2,0.7755]
[1727914054603,4.22991,2364.2,2363.7,4.23065]
[1727914054899,4.22991,2364.2,2363.8,1.198565]
[1727914055335,4.22997,2364.1,2363.8,1.198565]
[1727914055689,4.26957709,2364.0,2363.8,0.7755]
[1727914055891,0.03945709,2364.0,2363.8,0.7755]
[1727914056199,4.22952,2364.4,2363.8,5.00589]
[1727914056425,4.22968,2364.3,2363.8,5.00589]
[1727914056782,0.03968921,2364.2,2363.4,8.36783463]
[1727914056982,0.44224841,2365.7,2364.1,0.55]
[1727914056983,0.7818,2365.4,2364.1,0.55]
[1727914057283,4.22789,2365.3,2364.8,4.22867]
[1727914057488,4.22789,2365.3,2364.3,5.55766]
[1727914057489,4.22816,2365.1,2364.5,4.22905]
[1727914057748,4.22854,2364.9,2364.4,5.28142269]
[1727914057900,0.7818,2365.4,2364.5,1.08390027]
[1727914058083,4.22789,2365.3,2364.7,4.22876]
[1727914058291,4.22789,2365.3,2364.8,0.845779]
[1727914058532,4.22816,2365.1,2364.8,0.845779]
[1727914058843,4.22816,2365.1,2364.7,0.7781]
[1727914059182,8.45642,2365.1,2364.7,0.7781]
[1727914059699,8.4559,2365.3,2364.7,5.00684]
[1727914060043,4.22825,2365.1,2364.8,0.500712]
[1727914060202,4.22833,2365.0,2364.7,0.7781]
[1727914060704,4.22833,2365.0,2364.7,1.278823]
[1727914061040,4.22797,2365.2,2364.7,5.00686]
[1727914061219,4.22774,2365.4,2364.8,4.22867]
[1727914061404,4.22774,2365.4,2364.9,4.22849]
[1727914061729,4.22774,2365.4,2365.0,0.845716]
[1727914062093,8.45605,2365.2,2364.7,5.00679]
[1727914062290,4.22797,2365.2,2364.7,5.00679]
[1727914063026,4.22797,2365.2,2364.8,4.22866]
[1727914063743,4.22773,2365.4,2364.8,4.22866]
[1727914064076,0.8209,2366.1,2365.4,4.22745]
[1727914064293,4.22631,2366.2,2365.6,4.2271]
[1727914064560,0.07366174,2366.3,2365.9,4.22661]
[1727914064770,4.22565,2366.5,2365.7,0.55]
[1727914065063,4.22554,2366.6,2366.2,0.8145]
[1727914065990,16.62696694,2367.4,2366.3,0.63451636]
[1727914065991,0.7903,2367.2,2366.3,0.63451636]
[1727914066279,5.01355,2367.9,2367.1,4.22455]
[1727914066411,4.22361,2367.7,2367.2,0.08447639]
[1727914066644,4.22373,2367.6,2367.1,4.30901294]
[1727914066990,4.22361,2367.7,2367.1,4.30901294]
[1727914066991,4.22361,2367.7,2367.1,4.30890294]
[1727914067197,4.22368,2367.6,2367.1,5.56424323]
[1727914067690,0.7903,2367.9,2367.1,5.56424323]
[1727914067691,4.22426,2367.3,2367.1,1.25534029]
[1727914067900,4.22402,2367.5,2367.0,0.7645]
[1727914068192,5.22128369,2367.7,2367.1,4.2244]
[1727914068390,4.22326,2367.9,2367.2,0.55]
[1727914068593,4.22326,2367.9,2367.2,1.04889]
[1727914068749,4.22326,2367.9,2367.3,0.08446991]
[1727914069147,5.005,2368.3,2367.2,1.04889]
[1727914069148,5.00498,2368.3,2367.4,0.55]
[1727914069450,4.2229,2368.1,2367.4,0.55]
[1727914069794,4.2229,2368.1,2367.2,4.7743]
[1727914069964,4.22303,2368.0,2367.3,4.22421]
[1727914070165,4.2229,2368.1,2367.5,1.3139]
[1727914070380,4.22251,2368.3,2367.5,1.3139]
[1727914070590,0.7934,2368.6,2367.5,1.3139]
[1727914070591,0.7934,2368.6,2367.6,4.22352]
[1727914070798,4.22272,2368.2,2367.7,0.55]
[1727914071164,8.44478,2368.4,2367.7,0.55]
[1727914071408,4.22236,2368.4,2367.8,0.08445097]
[1727914071607,4.22248,2368.3,2367.8,0.5834249]
[1727914072566,4.22236,2368.4,2367.8,0.5834249]
[1727914072770,0.7545,2369.2,2368.0,4.22284]
[1727914072988,4.22186,2368.7,2368.1,0.55]
[1727914073620,4.22171,2368.8,2368.1,4.77278]
[1727914073766,8.44342,2368.8,2368.1,4.77278]
[1727914073978,4.22171,2368.8,2368.2,0.899562]
[1727914074182,4.22713,2369.3,2368.4,1.3776]
[1727914074183,0.0064,2369.3,2368.4,1.3776]
[1727914074383,0.0064,2369.3,2369.0,4.22117]
[1727914074583,0.0064,2369.3,2369.2,5.59793]
[1727914074783,4.21972,2369.9,2369.4,3.0]
[1727914075036,4.21972,2369.9,2369.4,3.55]
[1727914075325,4.66138648,2370.1,2369.4,3.55]
[1727914075326,4.21949,2370.0,2369.4,4.77047]
[1727914075625,8.88078648,2370.1,2369.6,0.55]
[1727914075835,0.44207648,2370.1,2369.6,0.9767619]
[1727914075986,4.2197,2369.9,2369.4,0.55]
[1727914076188,4.2197,2369.9,2369.4,4.77045]
[1727914076512,4.2197,2369.9,2369.4,6.474343]
[1727914076888,4.2197,2369.9,2369.4,2.253893]
[1727914077313,0.44207648,2370.1,2369.4,2.253893]
[1727914077517,0.44207648,2370.1,2369.8,0.55]
[1727914077727,5.62577307,2371.0,2369.7,5.05222]
[1727914077728,4.21793,2370.9,2370.0,0.55]
[1727914078032,4.21852,2370.5,2370.1,0.8324]
[1727914078383,4.21839,2370.6,2370.1,0.8324]
[1727914079180,4.21793,2370.9,2370.3,4.21883]
[1727914079383,4.21749,2371.1,2370.4,0.50623977]
[1727914079629,4.21749,2371.1,2370.4,4.72491977]
[1727914079630,4.21776,2371.0,2370.4,4.72491977]
[1727914079830,4.21776,2371.0,2370.4,4.640563]
[1727914080032,4.21776,2371.0,2370.4,4.21868]
[1727914080334,4.21749,2371.1,2370.5,4.21849]
[1727914080631,4.21838,2370.6,2370.1,5.05154]
[1727914080787,8.43611,2370.8,2370.2,0.55]
[1727914080994,4.21798,2370.8,2370.3,4.21884]
[1727914081424,4.21798,2370.8,2370.2,1.110152]
[1727914081637,4.639269,2371.1,2370.2,0.560152]
[1727914081792,4.21864,2370.5,2369.8,0.8324]
[1727914081997,4.21944,2370.0,2369.8,0.8324]
[1727914082302,4.21944,2370.0,2368.9,11.70129]
[1727914082303,4.22013,2369.6,2369.4,0.8324]
[1727914082505,6.46347307,2370.0,2369.0,0.8324]
[1727914082704,6.46347307,2370.0,2368.6,4.22183]
[1727914082705,0.8111,2369.5,2368.6,4.22183]
[1727914082947,4.22094,2369.2,2368.7,4.22171]
[1727914083227,4.22124,2369.0,2368.8,0.422171]
[1727914083605,4.22136,2368.9,2368.2,5.0107]
[1727914083805,4.22172,2368.7,2368.2,5.934037]
[1727914084006,4.22136,2368.9,2368.2,5.934037]
[1727914084007,4.22166,2368.8,2368.2,5.934037]
[1727914084308,4.22157,2368.8,2368.3,4.22242]
[1727914084512,4.22157,2368.8,2368.4,0.5933857]
[1727914084910,4.22157,2368.8,2368.2,1.711437]
[1727914084911,4.22157,2368.8,2368.3,0.55]
[1727914085200,4.22187,2368.7,2368.2,1.711437]
[1727914085406,4.22154,2368.9,2368.3,4.22243]
[1727914085665,4.22122,2369.0,2368.5,4.22207]
[1727914085886,4.22122,2369.0,2368.6,0.0844274]
[1727914086083,4.22068,2369.3,2368.6,0.0844274]
[1727914086252,4.22068,2369.3,2368.5,0.85288083]
[1727914086253,3.0,2369.6,2368.7,0.79]
[1727914086455,0.7574,2369.8,2368.7,0.79]
[1727914086456,4.22122,2369.0,2368.7,0.79]
[1727914087896,8.44185,2369.2,2368.7,0.79]
[1727914088067,4.22085,2369.2,2368.7,5.0117]
[1727914088417,4.22084,2369.2,2368.8,0.56675673]
[1727914088701,7.2206,2369.4,2368.8,0.56675673]
[1727914088908,7.2206,2369.4,2368.9,4.22134]
[1727914089117,4.22024,2369.6,2369.0,0.08441148]
[1727914089412,4.22024,2369.6,2369.0,0.56510363]
[1727914089611,4.22034,2369.5,2369.0,0.56510363]
[1727914089758,4.22085,2369.2,2369.0,0.48069215]
[1727914090097,4.22085,2369.2,2368.8,0.55]
[1727914090305,4.22085,2369.2,2368.9,0.556159]
[1727914090906,4.22059,2369.4,2368.9,0.556159]
[1727914090907,4.22059,2369.4,2368.9,4.777409]
[1727914091224,4.21997,2369.7,2369.2,4.22079]
[1727914091357,4.21997,2369.7,2369.3,0.422079]
[1727914091358,4.22021,2369.6,2369.3,0.422079]
[1727914091702,4.21997,2369.7,2369.2,4.30511224]
[1727914091910,4.21997,2369.7,2369.3,0.85259822]
[1727914092266,4.21993,2369.8,2369.3,0.85259822]
[1727914092468,4.21993,2369.8,2369.4,0.08439529]
[1727914093025,0.827,2370.1,2369.1,0.55]
[1727914093158,0.827,2370.1,2369.2,0.477107]
[1727914093159,4.22023,2369.6,2369.2,0.477107]
[1727914093358,4.22067,2369.3,2368.8,11.70141]
[1727914093761,4.22067,2369.3,2368.8,7.48]
[1727914094017,9.84554307,2369.8,2368.9,0.827]
[1727914094307,4.22112,2369.1,2368.8,7.48]
[1727914094516,4.22112,2369.1,2368.4,11.44432]
[1727914094661,4.22137,2368.9,2368.4,5.05455]
[1727914094859,4.22112,2369.1,2368.6,4.22179]
[1727914095069,4.22086,2369.2,2368.7,4.22166]
[1727914095273,8.44155,2369.3,2368.8,0.92876423]
[1727914095562,4.22136,2368.9,2368.8,0.844345]
[1727914095762,4.22136,2368.9,2368.5,1.892432]
[1727914095957,4.22054,2369.4,2368.5,1.892432]
[1727914095958,4.22186,2368.7,2368.5,1.892432]
[1727914096160,3.0,2369.3,2368.6,4.2219]
[1727914096483,4.22113,2369.1,2368.7,0.42219]
[1727914096818,4.22119,2369.0,2368.7,0.42219]
[1727914097024,4.22119,2369.0,2368.4,5.05448]
[1727914097188,4.22156,2368.8,2368.4,0.8324]
[1727914097392,4.22176,2368.7,2368.4,0.8324]
[1727914097592,4.22192,2368.6,2368.4,0.505488]
[1727914097917,4.22102,2369.1,2368.6,4.2218]
[1727914097918,4.22104,2369.1,2368.6,4.2218]
[1727914098121,4.22094,2369.2,2368.7,0.8324]
[1727914098280,4.22111,2369.1,2368.7,1.33782]
[1727914098475,4.22111,2369.1,2368.7,1.36371004]
[1727914098679,4.22122,2369.0,2368.7,1.33782]
[1727914098903,4.22171,2368.8,2368.2,4.22251]
[1727914099113,4.22174,2368.7,2368.2,4.22251]
[1727914099289,4.22194,2368.6,2368.3,0.422251]
[1727914099506,4.2214,2368.9,2368.1,3.0]
[1727914099822,4.22137,2368.9,2368.4,8.44433]
[1727914100005,4.22137,2368.9,2368.5,0.926483]
[1727914100977,8.44285,2368.9,2368.4,4.22223]
[1727914101175,4.22137,2368.9,2368.4,4.22223]
[1727914101978,8.44287,2368.9,2368.4,4.22223]
[1727914102183,4.22137,2368.9,2368.4,4.22223]
[1727914102377,8.44289,2368.9,2368.5,0.504273]
[1727914102610,4.22137,2368.9,2368.5,0.504273]
[1727914102781,8.44283,2368.9,2368.5,0.504273]
[1727914103330,4.2215,2368.9,2368.5,0.504273]
[1727914103529,4.22155,2368.8,2368.3,5.04285]
[1727914104224,4.22123,2369.0,2368.4,4.2999828]
[1727914104597,4.22123,2369.0,2368.4,8.44428]
[1727914104798,4.22123,2369.0,2368.4,4.22213]
[1727914105130,4.22155,2368.8,2368.3,5.04292]
[1727914105439,4.22123,2369.0,2368.4,5.148769]
[1727914105733,4.22123,2369.0,2368.4,4.30105775]
[1727914105934,8.44259,2369.0,2368.4,4.22223]
[1727914106304,4.22123,2369.0,2368.5,0.07882443]
[1727914106535,8.44255,2369.0,2368.5,4.81294987]
[1727914106829,8.44255,2369.0,2368.5,0.51215544]
[1727914106830,4.22137,2368.9,2368.5,0.51215544]
[1727914107037,4.22123,2369.0,2368.5,0.51215544]
[1727914107338,4.22123,2369.0,2368.6,0.47343854]
[1727914107492,4.22093,2369.2,2368.6,0.47343854]
[1727914107493,4.97646,2369.4,2368.6,0.47343854]
[1727914107695,4.22022,2369.6,2369.1,4.22092]
[1727914107912,4.22022,2369.6,2369.2,0.50305779]
[1727914108139,4.21988,2369.8,2369.3,5.67233889]
[1727914108301,4.22031,2369.5,2369.2,0.422092]
[1727914108505,4.22031,2369.5,2369.0,0.8207]
[1727914108715,4.99406,2370.1,2369.3,4.22051]
[1727914108907,4.21967,2369.9,2369.5,4.22029]
[1727914109410,4.99404,2370.1,2369.5,4.22029]
[1727914109411,4.21942,2370.0,2369.6,0.86499259]
[1727914109715,4.22039,2369.5,2369.0,4.22115]
[1727914110140,4.22039,2369.5,2369.0,5.0988275]
[1727914110359,4.22008,2369.7,2369.1,0.96208579]
[1727914110643,4.2203,2369.5,2369.2,0.8776775]
[1727914110793,4.22064,2369.4,2369.2,0.8776775]
[1727914111192,4.22083,2369.2,2369.1,0.8776775]
[1727914111392,4.22101,2369.1,2368.9,0.8776775]
[1727914111651,4.22101,2369.1,2369.0,0.8776775]
[1727914111845,4.22101,2369.1,2368.9,0.8776775]
[1727914111846,4.22119,2369.0,2368.9,0.8776775]
[1727914112147,4.22119,2369.0,2368.8,0.8776775]
[1727914112148,4.22136,2368.9,2368.8,0.8776775]
[1727914112309,4.22119,2369.0,2368.8,0.8776775]
[1727914112516,4.22119,2369.0,2368.9,0.8776775]
[1727914113045,4.22082,2369.3,2368.8,1.31651625]
[1727914113201,3.0,2369.4,2369.0,0.88070438]
[1727914113403,4.22097,2369.2,2369.0,0.88070438]
[1727914113599,4.22101,2369.1,2369.0,0.88070438]
[1727914113799,4.22119,2369.0,2368.9,0.88070438]
[1727914114136,4.22119,2369.0,2368.8,0.88070438]
[1727914114137,4.22136,2368.9,2368.8,0.88070438]
[1727914114298,4.22136,2368.9,2368.7,0.88070438]
[1727914114499,4.22154,2368.8,2368.7,0.88070438]
[1727914114896,4.22172,2368.7,2368.6,0.88070438]
[1727914115205,4.22154,2368.8,2368.6,0.88070438]
[1727914115402,8.44318,2368.8,2368.6,0.88070438]
[1727914116112,4.22154,2368.8,2368.6,0.88070438]
[1727914116313,4.22154,2368.8,2368.7,0.88070438]
[1727914116870,4.2213,2369.0,2368.7,0.88070438]